Workbook

Sheet Лист1

Sheet Лист2
A1: 5. Показатели по поступлениям и выплатам Учреждения
A2: Наименование показателя | B2: Всего | C2: в том числе очередной финансовый год 2014 | H2: 1-й год планового периода | I2: 2-й год планового периода
C3: всего | D3: из них:
D4: I | E4: II | F4: III | G4: IV
D5: кв. | E5: кв. | F5: кв. | G5: кв.
A6: 1. Остаток средств
A7: 2. Поступления, всего | B7: =B9 -> 28534200 | C7: =C9+C19+C20+C21 -> 9511400 | D7: 2760000 | E7: 2717000 | F7: 1755000 | G7: 2279400 | H7: 9511400 | I7: 9511400
A8: в том числе:
A9: 2.1. субсидии на выполнение муниципального задания всего: в том числе: | B9: =B11+B12+B18 -> 28534200 | C9: =C10+C11+C12+C13+C14+C15+C16+C17+C18 -> 9511400 | D9: =D11+D12+D17+D18 -> 2760000 | E9: 2717000 | F9: 1755000 | G9: 2279400 | H9: 9511400 | I9: 9511400
A10: 2.1.1. Обеспечение государственных гарантий прав граждан на получение общедоступного бесплатного дошкольного образования
A11: 2.1.2. Социальная поддержка семей, имеющих детей, в отношении питания детей, обучающихся в общеобразовательных школах. | B11: =C11+H11+I11 -> 826200 | C11: =D11+E11+F11+G11 -> 275400 | D11: 130000 | E11: 60000 | F11: 50000 | G11: 35400 | H11: 275400 | I11: 275400
A12: 2.1.3. Обеспечение государственных гарантий прав граждан на получение общедоступного и бесплатного начального общего, основного общего, среднего (полного) общего образования | B12: =C12+H12+I12 -> 16101000 | C12: =D12+E12+F12+G12 -> 5367000 | D12: 1342000 | E12: 1771000 | F12: 912000 | G12: 1342000 | H12: 5367000 | I12: 5367000
A13: 2.1.4. Обеспечение государственных гарантий прав граждан, содержащихся в исправительных учреждениях УИН, на получение общедоступного и бесплатного начального общего, основного общего, среднего (полного) общего образования
A14: 2.1.5. Социальная поддержка семей, имеющих детей, в отношении содержания детей в организациях, оказывающих услуги по обучению, воспитанию и уходу за детьми дошкольного возраста
A15: 2.1.6. Социальная поддержка семей, имеющих детей, в отношении компенсации части родительской платы за содержание ребенка в образовательных организациях, реализующих основную общеобразовательную программу дошкольного образования, за счет средств областного бюджета
A16: 2.1.7. Социальная поддержка детей, обучающихся в специальных (коррекционных) образовательных учреждениях обучающихся, воспитанников с ограниченными возможностями здоровья, в специальных ( коррекционных) образовательных учреждениях для детей- сирот и детей, обучающихся, воспитанников с ограниченными возможностями здоровья
A17: 2.1.8. Осуществление выплат вознаграждения за выполнение функций классного руководителя педагогическим работникам муниципальных образовательных учреждений
A18: 2.1.9. Обеспечение расходов за счет средств муниципального бюджета. | B18: =C18+H18+I18 -> 11607000 | C18: =D18+E18+F18+G18 -> 3869000 | D18: 1288000 | E18: 886000 | F18: 793000 | G18: 902000 | H18: 3869000 | I18: 3869000
A19: 2.2. целевые субсидии
A20: 2.3. бюджетные инвестиции
A21: 2.4. поступления от оказания учреждением услуг (выполнения работ), относящихся в соответствии с уставом к основным видам деятельности, предоставление которых осуществляется на платной основе, а также поступления от иной приносящей доход деятельности всего
A22: 3. Выплаты по обеспечению государственных гарантий прав граждан на получение общедоступного бесплатного дошкольного образования, всего : в том числе:
A23: 3.1. оплата труда и начисления на выплаты по оплате труда
A24: 3.2. приобретение материальных запасов
A25: 4. Выплаты по социальной поддержке семей, имеющих детей, в отношении питания детей, обучающихся в общеобразовательных школах, всего:, в том числе: | B25: =B27+B26 -> 826200 | C25: =D25+E25+F25+G25 -> 275400 | D25: =D26+D27 -> 130000 | E25: =E26+E27 -> 60000 | F25: =F26+F27 -> 50000 | G25: =G26+G27 -> 35400 | H25: =H26+H27 -> 275400 | I25: 275400
A26: 4.1. приобретение материальных запасов
A27: 4.2. прочие работы, услуги | B27: =C27+H27+I27 -> 826200 | C27: =D27+E27+F27+G27 -> 275400 | D27: 130000 | E27: 60000 | F27: 50000 | G27: 35400 | H27: 275400 | I27: 275400
A28: 5. Выплаты по обеспечению государственных гарантий прав граждан на получение общедоступного и бесплатного начального общего, основного общего, среднего (полного) общего образования всего, в том числе : | B28: =B29+B30+B31+B32+B33+B34+B35+B36+B39+B40+B41+B42 -> 16101000 | C28: =C29+C30+C31+C32+C33+C34+C35+C36+C39+C40+C41+C42 -> 5367000 | D28: =D29+D30+D31+D32+D33+D34+D35+D36+D39+D40+D41+D42 -> 1342000 | E28: 1771000 | F28: 912000 | G28: 1342000 | H28: =H29+H30+H31+H32+H33+H34+H35+H36+H39+H40+H41+H42 -> 5367000 | I28: 5367000
A29: 5.1. Оплата труда | B29: =C29+H29+I29 -> 11271000 | C29: =D29+E29+F29+G29 -> 3757000 | D29: 945600 | E29: 1250000 | F29: 632800 | G29: 928600 | H29: 3757000 | I29: 3757000
A30: 5.2.Прочие выплаты | B30: =C30+H30+I30 -> 12000 | C30: 4000 | D30: 1000 | E30: 1000 | F30: 1000 | G30: 1000 | H30: 4000 | I30: 4000
A31: 5.3. Начисления на выплаты по оплате труда | B31: =C31+H31+I31 -> 3403800 | C31: 1134600 | D31: 285600 | E31: 377500 | F31: 191100 | G31: 280400 | H31: 1134600 | I31: 1134600
A32: 5.4. Услуги связи | B32: =C32+H32+I32 -> 81000 | C32: 27000 | D32: 6500 | E32: 7000 | F32: 7000 | G32: 6500 | H32: 27000 | I32: 27000
A33: 5.5. Транспортные услуги | B33: =C33+H33+I33 -> 0 | C33: 0
A34: 5.6. прочие услуги | C34: 0
A35: 5.7. Прочие работы, услуги | B35: =C35+H35+I35 -> 792000 | C35: 264000 | D35: 44000 | E35: 70800 | F35: 61200 | G35: 88000 | H35: 264000 | I35: 264000
A36: 5.8. Социальное обеспечение | B36: =B37+B38 -> 0 | C36: =C37+C38 -> 0 | D36: 0 | E36: 0 | F36: 0 | G36: 0 | H36: 0 | I36: 0
A37: 5.8.1. Пенсии, пособия и выплаты по пенсионному, социальному и медицинскому страхованию населения, пособия по социальному страхованию
A38: 5.8.2. Пособия по социальной помощи населению организациям сектора государственного управления
A39: 5.9. Прочие расходы | B39: =C39+H39+I39 -> 150000 | C39: =D39+E39+F39+G39 -> 50000 | D39: 34300 | E39: 9700 | F39: 3100 | G39: 2900 | H39: 50000 | I39: 50000
A40: 5.10. Увеличение стоимости основных средств | C40: =D40+E40+F40+G40 -> 0
A41: 5.11. Увеличение стоимости материальных активов | B41: =C41+H41+I41 -> 391200 | C41: =D41+E41+F41+G41 -> 130400 | D41: 25000 | E41: 55000 | F41: 15800 | G41: 34600 | H41: 130400 | I41: 130400
A42: 5.12. Иные выплаты, не запрещенные законодательством Российской Федерации
A43: 6. Выплаты по обеспечению государственных гарантий прав граждан, содержащихся в исправительных учреждениях УИН, на получение общедоступного и бесплатного начального общего, основного общего, среднего (полного) общего образования всего, в том числе: | B43: =B44+B45+B46+B47+B48+B49+B50+B51+B54+B55+B56+B57 -> 0 | C43: =C44+C45+C46+C47+C48+C49+C50+C51+C54+C55+C56+C57 -> 0 | D43: 0 | E43: 0 | F43: 0 | G43: 0 | H43: 0 | I43: 0
A44: 6.1. Оплата труда
A45: 6.2.Прочие выплаты
A46: 6.3. Начисления на выплаты по оплате труда
A47: 6.4. Услуги связи
A48: 6.5. Транспортные услуги
A49: 6.6. Прочие услуги
A50: 6.7. Прочие работы, услуги
A51: 6.8. Социальное обеспечение | B51: =B52+B53 -> 0 | C51: =C52+C53 -> 0 | D51: 0 | E51: 0 | F51: 0 | G51: 0 | H51: 0 | I51: 0
A52: 6.8.1. Пенсии, пособия и выплаты по пенсионному, социальному и медицинскому страхованию населения, пособия по социальному страхованию
A53: 6.8.2. Пособия по социальной помощи населению организациям сектора государственного управления
A54: 6.9. Прочие расходы
A55: 6.10. Увеличение стоимости основных средств
A56: 6.11. Увеличение стоимости материальных активов
A57: 6.12. Иные выплаты, не запрещенные законодательством Российской Федерации
A58: 7. Выплаты по социальной поддержке семей, имеющих детей, в отношении содержания детей в организациях, оказывающих услуги по обучению, воспитанию и уходу за детьми дошкольного возраста всего , в том числе: | B58: =B59+B60+B61+B62+B63+B64+B65+B66+B69+B70+B71+B72 -> 0 | C58: =C59+C60+C61+C62+C63+C64+C65+C66+C69+C70+C71+C72 -> 0 | D58: 0 | E58: 0 | F58: 0 | G58: =G59+G60+G61+G62+G63+G64+G65+G66+G69+G70+G71+G72 -> 0 | H58: 0 | I58: 0
A59: 7.1. Оплата труда
A60: 7.2.Прочие выплаты
A61: 7.3. Начисления на выплаты по оплате труда
A62: 7.4. Услуги связи
A63: 7.5. Транспортные услуги | C63: =D63+E63+F63+G63 -> 0
A64: 7.6. Прочие услуги
A65: 7.7. Прочие работы, услуги | C65: =D65+E65+F65+G65 -> 0
A66: 7.8. Социальное обеспечение | B66: =B67+B68 -> 0 | C66: 0 | D66: =D67+D68 -> 0 | E66: 0 | F66: 0 | G66: 0 | H66: 0 | I66: 0
A67: 7.8.1. Пенсии, пособия и выплаты по пенсионному, социальному и медицинскому страхованию населения, пособия по социальному страхованию
A68: 7.8.2. Пособия по социальной помощи населению организациям сектора государственного управления
A69: 7.9. Прочие расходы
A70: 7.10. Увеличение стоимости основных средств
A71: 7.11. Увеличение стоимости материальных активов
A72: 7.12. Иные выплаты, не запрещенные законодательством Российской Федерации
A73: 8. Выплаты по социальной поддержке семей, имеющих детей, в отношении компенсации части родительской платы за содержание ребенка в образовательных организациях, реализующих основную общеобразовательную программу дошкольного образования, за счет средств областного бюджета всего, в том числе: | B73: =B74 -> 0 | C73: =C74 -> 0 | D73: 0 | E73: 0 | F73: 0 | G73: 0 | H73: 0 | I73: 0
A74: 8.1. приобретение материальных запасов
A75: 9. Выплаты по социальной поддержке детей, обучающихся в специальных (коррекционных) образовательных учреждениях обучающихся, воспитанников с ограниченными возможностями здоровья, в специальных ( коррекционных) образовательных учреждениях для детей- сирот и детей, обучающихся, воспитанников с ограниченными возможностями здоровья всего, в том числе: | B75: =B76+B77 -> 0 | C75: =C76+C77 -> 0 | D75: 0 | E75: 0 | F75: 0 | G75: 0 | H75: 0 | I75: 0
A76: 9.1. приобретение материальных запасов
A77: 9.2. прочие работы, услуги
A78: 10. Выплаты по осуществлению выплат вознаграждения за выполнение функций классного руководителя педагогическим работникам муниципальных образовательных учреждений | B78: =B79+B80 -> 0 | C78: =C79+C80 -> 0 | D78: 0 | E78: 0 | F78: 0 | G78: 0 | H78: 0 | I78: 0
A79: 10. 1. Оплата труда
A80: 10.2. Начисления на выплаты по оплате труда
A81: 11. Выплаты за счет средств муниципального бюджета. | B81: =B82+B83+B84+B85+B86+B87+B88+B89+B90+B91+B92+B95+B96+B97+B98 -> 11607000 | C81: =C82+C83+C84+C85+C86+C87+C88+C89+C90+C91+C92+C95+C96+C97+C98 -> 3869000 | D81: 1288000 | E81: 886000 | F81: 793000 | G81: 902000 | H81: 3869000 | I81: 3869000
A82: 11.1. Оплата труда
A83: 11.2.Прочие выплаты
A84: 11.3. Начисления на выплаты по оплате труда
A85: 11.4. Услуги связи
A86: 11.5. Транспортные услуги | B86: =C86+H86+I86 -> 630900 | C86: =D86+E86+F86+G86 -> 210300 | D86: 55000 | E86: 35100 | F86: 65000 | G86: 55200 | H86: 210300 | I86: 210300
A87: 11.6. Прочие услуги
A88: 11.7. коммунальные услуги | B88: =C88+H88+I88 -> 5477100 | C88: =D88+E88+F88+G88 -> 1825700 | D88: 562600 | E88: 540900 | F88: 480400 | G88: 241800 | H88: 1825700 | I88: 1825700
A89: 11.8. Работы, услуги по содержанию имущества | B89: =C89+H89+I89 -> 3018600 | C89: =D89+E89+F89+G89 -> 1006200 | D89: 365000 | E89: 140000 | F89: 136200 | G89: 365000 | H89: 1006200 | I89: 1006200
A90: 11.9. Капитальный ремонт
A91: 11.10. Прочие работы, услуги | B91: =C91+H91+I91 -> 1549200 | C91: =D91+E91+F91+G91 -> 516400 | D91: 185000 | E91: 120000 | F91: 41400 | G91: 170000 | H91: 516400 | I91: 516400
A92: 11.11. Социальное обеспечение | B92: =B93+B94 -> 0 | C92: =C93+C94 -> 0 | D92: 0 | E92: 0 | F92: 0 | G92: 0 | H92: 0 | I92: 0
A93: 11.11.1. Пенсии, пособия и выплаты по пенсионному, социальному и медицинскому страхованию населения, пособия по социальному страхованию
A94: 11.11.2. Пособия по социальной помощи населению организациям сектора государственного управления
A95: 11.12. Прочие расходы
A96: 11.13. Увеличение стоимости основных средств | B96: =C96+H96+I96 -> 61200 | C96: =D96+E96+F96+G96 -> 20400 | D96: 20400 | H96: 20400 | I96: 20400
A97: 11.14. Увеличение стоимости материальных активов | B97: =C97+H97+I97 -> 870000 | C97: =D97+E97+F97+G97 -> 290000 | D97: 100000 | E97: 50000 | F97: 70000 | G97: 70000 | H97: 290000 | I97: 290000
A98: 11.15. Иные выплаты, не запрещенные законодательством Российской Федерации
A99: 12.Иные выплаты, не запрещенные законодательством Российской Федерации
A100: 13. Остаток средств | B100: =B6+B7-B22-B25-B28-B43-B58-B73-B75-B81-B99 -> 0 | C100: =C6+C7-C22-C25-C28-C43-C58-C73-C75-C81-C99 -> 0 | D100: 0 | E100: 0 | F100: 0 | G100: 0 | H100: 0 | I100: 0
A101: 14. Справочно:
A102: Объем публичных обязательств перед физическими лицами, подлежащих исполнению в денежной форме, полномочия, по исполнению которых, от имени учредителя передаются учреждению, всего

Sheet Лист3
A2: план
A3: финансово- хозяйственной деятельности
A5: 1. Учетная карта учреждения
B7: Полное, краткое наименование учреждения:
B8: наименование органа, осуществляющего функции и полномочия учредителя | C8: Отдел образования Администрации Тобольского муниципального района
B9: Юридический адрес
B10: Дата регистрации
B11: Место регистрации
B12: Телефон (факс) учреждения
B13: Адрес электронной почты
B14: Ф.И.О. руководителя учреждения
B15: Ф.И.О. главного бухгалтера
B16: ИНН/КПП
B17: Код ОКВЭД (ОКОНХ)
B18: (вид деятельности)
B19: Код ОКПО
B20: Код ОКАТО (местонахождение)
B21: Код ОКОПФ (организационно-правовая форма)
B22: Код ОКОГУ (орган управления)
B24: 2. Общая характеристика учреждения
A26: 1. | B26: Основные общеобразовательные программы:
A27: 2. | B27: Образовательные программы
A28: 3. | B28: Наличие лицензий
A29: 4. | B29: Свидетельство о государственной аккредитации учреждения
A30: 5. | B30: Тип учреждения
A31: 6. | B31: Вид учреждения
A32: 7. | B32: Структура управления учреждением
A33: 8. | B33: . Цели деятельности Учреждения
A34: 9. | B34: Виды деятельности Учреждения, относящиеся к его основным видам деятельности в соответствии с уставом учреждения
A35: 10. | B35: Списочная численность работников всего, в том числе:
A36: 10.1. | B36: - Административно-управленческий персонал (АУП)
A37: 10.2. | B37: - Всего педагогических работников, в том числе:
A38: 10.2.1. | B38: педагоги, непосредственно осуществляющие
B39: учебный процесс
A40: 10.2.1.1. | B40: Из них основных работников
A41: 10.2.2. | B41: иные категории педагогических работников
A42: 10.2.2.1. | B42: Из них основных работников
A43: 10.3. | B43: -Учебно-вспомогательный персонал (УВП)
A44: 10.4. | B44: -Младший обслуживающий (вспомогательный) персонал (МОП)
A45: 11. | B45: Штаты учреждения всего, в том числе:
A46: 11.1. | B46: - Административно-управленческий персонал (АУП)
A47: 11.2. | B47: - Всего педагогических работников, в том числе:
A48: 11.2.1. | B48: педагоги, непосредственно осуществляющие учебный процесс
A49: 11.2.2. | B49: иные категории педагогических работников
A50: 11.3. | B50: -Учебно-вспомогательный персонал (УВП)
A51: 11.4. | B51: -Младший обслуживающий (вспомогательный) персонал (МОП)
A52: 12. | B52: Численность классных руководителей
A53: 12.1. | B53: Количества класс, класс- комплектов
A54: 13. | B54: Численность лиц, привлеченных по договорам ГПХ всего, в том числе:
A55: 13.1. | B55: Обеспечение государственных гарантий прав граждан на получение общедоступного и бесплатного начального общего, основного общего, среднего (полного) общего образования
A56: 13.2. | B56: Обеспечение государственных гарантий прав граждан, содержащихся в исправительных учреждениях УИН, на получение общедоступного и бесплатного начального общего, основного общего, среднего (полного) общего образования
A57: 13.3. | B57: Социальная поддержка семей, имеющих детей, в отношении содержания детей в организациях, оказывающих услуги по обучению, воспитанию и уходу за детьми дошкольного возраста
A58: 13.4. | B58: Обеспечение расходов за счет средств муниципального бюджета.
A59: 14. | B59: Численность воспитанников, охваченных горячим питанием всего:, из них:
A60: 14.1. | B60: Численность детей с ОВЗ
A61: 14.2. | B61: Численность малообеспеченных детей
A62: 15. | B62: Количество учебных часов по тарификации всего, в том числе:
A63: 15.1. | B63: Основных работников
A64: 15.2. | B64: Совместителей
A65: 16. | B65: Проектная/ фактическая мощность учреждения
A66: 17. | B66: Количество зданий, строений, сооружений
A67: 18. | B67: Этажность здания школы (детского сада)
A68: 19. | B68: Объем каждого здания
A69: 20. | B69: % износа каждого здания
A70: 21. | B70: Год ввода в эксплуатацию зданий
A71: 22. | B71: Протяженность тепловых сетей
A72: 23. | B72: Протяженность электрических сетей
A73: 24. | B73: % износа тепловых сетей
A74: 25. | B74: % износа электрических сетей
A75: 26. | B75: Площадь зданий всего, в том числе:
A76: 26.1. | B76: - школа (детский сад);
A77: 26.2. | B77: - котельная;
A78: 26.3. | B78: - другие
A80: 3. Услуги (работы), относящиеся к основным видам деятельности Учреждения, предоставление которых для физических и юридических лиц осуществляется за плату:____________________________________
A82: 4. Показатели финансового состояния учреждения
B84: Наименование финансового показателя | C84: Размер, руб.
B85: 1. Внеоборотные активы, общая сумма, из них: | C85: =C86+C91+C95 -> 0
B86: Недвижимое имущество, | C86: =C88+C89+C90 -> 0
B87: в том числе:
B88: - закрепленное за учреждением учредителем;
B89: - приобретенное за счет средств, выделенных учредителем;
B90: - приобретенное за счет средств, полученных в результате осуществления приносящей доход деятельности
B91: Особо ценное движимое имущество, | C91: =C93+C94 -> 0
B92: в том числе:
B93: - закрепленное за учреждением учредителем
B94: - приобретенное за счет средств, выделенных учредителем
B95: Прочее движимое имущество, | C95: =C97+C98+C99 -> 0
B96: в том числе:
B97: - закрепленное за учреждением учредителем
B98: - приобретенное за счет средств, выделенных учредителем
B99: - приобретенное за счет средств, полученных в результате осуществления приносящей доход деятельности
B100: 2. Оборотные активы, общая сумма, из них: | C100: =C101+C105 -> 0
B101: Запасы, | C101: =C103+C104 -> 0
B102: в том числе:
B103: - приобретенные за счет средств целевого финансирования
B104: - приобретенные за счет средств, полученных в
B105: результате осуществления приносящей доход деятельности
B106: 3. Дебиторская задолженность, общая сумма, | C106: =C108+C109 -> 0
B107: в том числе:
B108: - покупатели и заказчики
B109: - прочие дебиторы
B110: 4. Целевое финансирование, | C110: =C112+C114+C115+C116 -> 0
B111: в том числе:
B112: - в виде субсидий, выделенных из бюджета бюджетной
B113: системы РФ
B114: - в виде имущества, закрепленного учредителем
B115: - в виде пожертвований от частных лиц и компаний
B116: - в виде средств, полученных в результате ведения приносящей доход деятельности
B117: 5. Кредиторская задолженность, общая сумма, | C117: =C119+C120 -> 0
B118: в том числе:
B119: - поставщики и подрядчики
B120: - прочие кредиторы
